[Event "Early-Titled-Tuesday-Blitz-February-06-2024"]
[Site "Chess.com"]
[Date "2024.02.06"]
[Round "2"]
[White "MelihKaanCan"]
[Black "azikom"]
[Result "0-1"]
[WhiteElo "2373"]
[BlackElo "2710"]
[TimeControl "180+1"]
[EndTime "8:14:06 PST"]
[Termination "azikom won by resignation"]

1. e4 {[%clk 0:02:58]} 1... c6 {[%clk 0:02:59.7]} 2. d4 {[%clk 0:02:54.9]} 2...
d5 {[%clk 0:03:00.5]} 3. exd5 {[%clk 0:02:55.4]} 3... cxd5 {[%clk 0:03:00.5]} 4.
Bd3 {[%clk 0:02:56]} 4... Nf6 {[%clk 0:02:59.7]} 5. Bd2 {[%clk 0:02:54.4]} 5...
Nc6 {[%clk 0:02:59.6]} 6. c3 {[%clk 0:02:54.5]} 6... Bg4 {[%clk 0:02:59]} 7. Qb3
{[%clk 0:02:54.4]} 7... Qc7 {[%clk 0:02:58.7]} 8. Ne2 {[%clk 0:02:53.6]} 8... e6
{[%clk 0:02:53.8]} 9. f3 {[%clk 0:02:53.3]} 9... Bh5 {[%clk 0:02:52.7]} 10. Bf4
{[%clk 0:02:53.5]} 10... Bd6 {[%clk 0:02:51.9]} 11. Bxd6 {[%clk 0:02:52.7]}
11... Qxd6 {[%clk 0:02:51.8]} 12. O-O {[%clk 0:02:53.4]} 12... Bg6 {[%clk
0:02:46.2]} 13. Bb5 {[%clk 0:02:47.7]} 13... O-O {[%clk 0:02:30.7]} 14. Nd2
{[%clk 0:02:46.9]} 14... Rab8 {[%clk 0:02:28.6]} 15. c4 {[%clk 0:02:35.3]} 15...
a6 {[%clk 0:02:25]} 16. c5 {[%clk 0:02:30.8]} 16... Nxd4 {[%clk 0:01:45.8]} 17.
Nxd4 {[%clk 0:01:47.5]} 17... Qxc5 {[%clk 0:01:44.6]} 18. Qc3 {[%clk 0:01:48]}
18... Qxc3 {[%clk 0:01:44.1]} 19. bxc3 {[%clk 0:01:48.1]} 19... axb5 {[%clk
0:01:44.6]} 20. Nxb5 {[%clk 0:01:47.9]} 20... Bd3 {[%clk 0:01:44.9]} 0-1

[Event "Early-Titled-Tuesday-Blitz-February-06-2024"]
[Site "Chess.com"]
[Date "2024.02.06"]
[Round "2"]
[White "PepeCuenca"]
[Black "Real_taiatai"]
[Result "1-0"]
[WhiteElo "2715"]
[BlackElo "2474"]
[TimeControl "180+1"]
[EndTime "8:14:11 PST"]
[Termination "PepeCuenca won by resignation"]

1. d4 {[%clk 0:02:54.3]} 1... Nf6 {[%clk 0:02:57.6]} 2. Bf4 {[%clk 0:02:54.2]}
2... d5 {[%clk 0:02:53.1]} 3. e3 {[%clk 0:02:54.2]} 3... g6 {[%clk 0:02:53.6]}
4. Nc3 {[%clk 0:02:53.3]} 4... Nh5 {[%clk 0:02:53.5]} 5. Bg5 {[%clk 0:02:40.6]}
5... f6 {[%clk 0:02:53.3]} 6. Bh4 {[%clk 0:02:39.6]} 6... Ng7 {[%clk 0:02:53.8]}
7. g4 {[%clk 0:02:09.3]} 7... c6 {[%clk 0:02:48.7]} 8. f4 {[%clk 0:01:38.7]}
8... h5 {[%clk 0:02:36.7]} 9. gxh5 {[%clk 0:01:36.2]} 9... Rxh5 {[%clk
0:02:36.5]} 10. Bf2 {[%clk 0:01:32]} 10... Kf7 {[%clk 0:02:28.3]} 11. Nf3 {[%clk
0:01:30.8]} 11... Bg4 {[%clk 0:02:25.4]} 12. Rg1 {[%clk 0:01:21.1]} 12... Qc8
{[%clk 0:02:18.2]} 13. Rxg4 {[%clk 0:01:17.7]} 13... Qxg4 {[%clk 0:01:55.6]} 14.
Ne5+ {[%clk 0:01:17.6]} 14... fxe5 {[%clk 0:01:55.7]} 15. Qxg4 {[%clk 0:01:17]}
15... e4 {[%clk 0:01:56.6]} 16. Qc8 {[%clk 0:01:05.9]} 1-0

[Event "Early-Titled-Tuesday-Blitz-February-06-2024"]
[Site "Chess.com"]
[Date "2024.02.06"]
[Round "2"]
[White "Triumphmate"]
[Black "gpsji27"]
[Result "1-0"]
[WhiteElo "2517"]
[BlackElo "2319"]
[TimeControl "180+1"]
[EndTime "8:14:12 PST"]
[Termination "Triumphmate won by resignation"]

1. e4 {[%clk 0:02:48.8]} 1... e5 {[%clk 0:02:57.9]} 2. Nf3 {[%clk 0:02:49.3]}
2... Nc6 {[%clk 0:02:57.2]} 3. Nc3 {[%clk 0:02:50.2]} 3... Nf6 {[%clk
0:02:56.6]} 4. Bb5 {[%clk 0:02:50.9]} 4... Nd4 {[%clk 0:02:54.3]} 5. Ba4 {[%clk
0:02:50.4]} 5... Bc5 {[%clk 0:02:45]} 6. d3 {[%clk 0:02:50]} 6... Qe7 {[%clk
0:02:37.3]} 7. Be3 {[%clk 0:02:47.9]} 7... Nxf3+ {[%clk 0:02:34.5]} 8. Qxf3
{[%clk 0:02:47.7]} 8... Bxe3 {[%clk 0:02:25.4]} 9. fxe3 {[%clk 0:02:48.6]} 9...
c6 {[%clk 0:02:24.3]} 10. O-O {[%clk 0:02:48.8]} 10... O-O {[%clk 0:02:19.2]}
11. Bb3 {[%clk 0:02:48.7]} 11... d6 {[%clk 0:02:17.1]} 12. Qg3 {[%clk
0:02:48.2]} 12... Be6 {[%clk 0:02:04.9]} 13. Rf2 {[%clk 0:02:48.3]} 13... Bxb3
{[%clk 0:01:58]} 14. axb3 {[%clk 0:02:49.2]} 14... d5 {[%clk 0:01:58.5]} 15.
Raf1 {[%clk 0:02:48.4]} 15... Kh8 {[%clk 0:01:58.2]} 16. Rf5 {[%clk 0:02:43.3]}
16... Rae8 {[%clk 0:01:51.6]} 17. Rg5 {[%clk 0:02:25]} 17... Rg8 {[%clk
0:01:33.1]} 18. Rff5 {[%clk 0:02:16.4]} 18... h6 {[%clk 0:01:23.8]} 19. Rxe5
{[%clk 0:02:03.5]} 19... hxg5 {[%clk 0:01:23.2]} 20. Rxe7 {[%clk 0:01:59.7]}
20... Rxe7 {[%clk 0:01:22.7]} 21. Qxg5 {[%clk 0:01:57.5]} 21... dxe4 {[%clk
0:01:22.6]} 22. Qh4+ {[%clk 0:01:57.6]} 1-0

[Event "Early-Titled-Tuesday-Blitz-February-06-2024"]
[Site "Chess.com"]
[Date "2024.02.06"]
[Round "2"]
[White "SergioMoralesG"]
[Black "Szachulec75"]
[Result "1-0"]
[WhiteElo "2465"]
[BlackElo "2208"]
[TimeControl "180+1"]
[EndTime "8:14:19 PST"]
[Termination "SergioMoralesG won by resignation"]

1. d4 {[%clk 0:02:54.5]} 1... Nf6 {[%clk 0:02:58.2]} 2. c4 {[%clk 0:02:54.5]}
2... g6 {[%clk 0:02:58.7]} 3. Nc3 {[%clk 0:02:53.7]} 3... Bg7 {[%clk 0:02:58.2]}
4. e4 {[%clk 0:02:53.7]} 4... d6 {[%clk 0:02:58.8]} 5. Nf3 {[%clk 0:02:54.2]}
5... O-O {[%clk 0:02:58.6]} 6. Be2 {[%clk 0:02:54.8]} 6... Bg4 {[%clk
0:02:58.4]} 7. Be3 {[%clk 0:02:54.6]} 7... Nfd7 {[%clk 0:02:58.2]} 8. Qd2 {[%clk
0:02:54.2]} 8... Nc6 {[%clk 0:02:56.2]} 9. O-O-O {[%clk 0:02:47]} 9... Bxf3
{[%clk 0:02:51.4]} 10. Bxf3 {[%clk 0:02:45.6]} 10... e5 {[%clk 0:02:51.7]} 11.
dxe5 {[%clk 0:02:41.2]} 11... Ncxe5 {[%clk 0:02:44.1]} 12. Be2 {[%clk
0:02:41.4]} 12... a6 {[%clk 0:02:40.9]} 13. Bh6 {[%clk 0:02:40.1]} 13... b5
{[%clk 0:02:22.7]} 14. Bxg7 {[%clk 0:02:08.4]} 14... Kxg7 {[%clk 0:02:20.8]} 15.
cxb5 {[%clk 0:02:08.5]} 15... axb5 {[%clk 0:02:19.1]} 16. Bxb5 {[%clk
0:02:09.1]} 16... Nc5 {[%clk 0:02:17.7]} 17. f4 {[%clk 0:01:59.3]} 17... Ned7
{[%clk 0:02:04.6]} 18. Bxd7 {[%clk 0:01:48]} 18... Qxd7 {[%clk 0:02:00.8]} 19.
Qd4+ {[%clk 0:01:45.4]} 19... Kg8 {[%clk 0:01:59.7]} 20. Qxc5 {[%clk 0:01:43.8]}
20... Rfb8 {[%clk 0:01:57.4]} 21. Qd4 {[%clk 0:01:32.3]} 21... Rb6 {[%clk
0:01:51.2]} 22. Nd5 {[%clk 0:01:23.4]} 22... Qc6+ {[%clk 0:01:41.5]} 23. Kb1
{[%clk 0:01:23.3]} 1-0

[Event "Early-Titled-Tuesday-Blitz-February-06-2024"]
[Site "Chess.com"]
[Date "2024.02.06"]
[Round "2"]
[White "Licancabur"]
[Black "MikeSailer"]
[Result "1-0"]
[WhiteElo "2424"]
[BlackElo "2054"]
[TimeControl "180+1"]
[EndTime "8:14:40 PST"]
[Termination "Licancabur won by resignation"]

1. d4 {[%clk 0:03:00.7]} 1... d5 {[%clk 0:02:59.8]} 2. Bg5 {[%clk 0:02:56.4]}
2... Nf6 {[%clk 0:02:58.7]} 3. Bxf6 {[%clk 0:02:56]} 3... gxf6 {[%clk
0:02:58.3]} 4. e3 {[%clk 0:02:53.4]} 4... Bf5 {[%clk 0:02:56.6]} 5. Be2 {[%clk
0:02:37.6]} 5... e6 {[%clk 0:02:55.8]} 6. g4 {[%clk 0:02:34.7]} 6... Bg6 {[%clk
0:02:52.4]} 7. h4 {[%clk 0:02:34.6]} 7... h6 {[%clk 0:02:48.9]} 8. Nd2 {[%clk
0:02:27.7]} 8... Bd6 {[%clk 0:02:48.2]} 9. h5 {[%clk 0:02:20.9]} 9... Bh7 {[%clk
0:02:48]} 10. Bd3 {[%clk 0:02:17.8]} 10... Bxd3 {[%clk 0:02:45.6]} 11. cxd3
{[%clk 0:02:16.7]} 11... a6 {[%clk 0:02:45.3]} 12. Ne2 {[%clk 0:02:12.9]} 12...
Nd7 {[%clk 0:02:43.6]} 13. Nc3 {[%clk 0:02:12.1]} 13... Qe7 {[%clk 0:02:41.6]}
14. Rc1 {[%clk 0:02:09.6]} 14... O-O-O {[%clk 0:02:40.1]} 15. Na4 {[%clk
0:02:03.4]} 15... Kb8 {[%clk 0:02:39.8]} 16. Nb3 {[%clk 0:02:02.3]} 16... e5
{[%clk 0:02:34.8]} 17. Kf1 {[%clk 0:01:35.8]} 17... exd4 {[%clk 0:02:31.3]} 18.
exd4 {[%clk 0:01:35]} 18... f5 {[%clk 0:02:31.2]} 19. Nbc5 {[%clk 0:01:27.4]}
19... fxg4 {[%clk 0:02:25.6]} 20. Qb3 {[%clk 0:01:23.3]} 20... b6 {[%clk
0:02:15.7]} 21. Nxa6+ {[%clk 0:01:13.8]} 21... Ka7 {[%clk 0:02:13.4]} 22. Nxc7
{[%clk 0:01:12.7]} 22... Bxc7 {[%clk 0:01:55]} 23. Rxc7+ {[%clk 0:01:12.1]}
23... Kb8 {[%clk 0:01:55]} 24. Nxb6 {[%clk 0:01:06.5]} 24... Kxc7 {[%clk
0:01:48.6]} 25. Nxd5+ {[%clk 0:01:05.8]} 1-0

[Event "Early-Titled-Tuesday-Blitz-February-06-2024"]
[Site "Chess.com"]
[Date "2024.02.06"]
[Round "2"]
[White "IMRosen"]
[Black "alvarorodriguezavila"]
[Result "1-0"]
[WhiteElo "2689"]
[BlackElo "2383"]
[TimeControl "180+1"]
[EndTime "8:14:41 PST"]
[Termination "IMRosen won by resignation"]

1. d4 {[%clk 0:03:00.9]} 1... Nf6 {[%clk 0:03:00.1]} 2. Bf4 {[%clk 0:03:00]}
2... d5 {[%clk 0:02:54]} 3. e3 {[%clk 0:03:00.1]} 3... e6 {[%clk 0:02:54.6]} 4.
Nf3 {[%clk 0:03:00.1]} 4... Bd6 {[%clk 0:02:55.2]} 5. Ne5 {[%clk 0:03:00.2]}
5... O-O {[%clk 0:02:40.6]} 6. Nd2 {[%clk 0:03:00.1]} 6... c5 {[%clk 0:02:39.9]}
7. c3 {[%clk 0:02:59.9]} 7... Nc6 {[%clk 0:02:27.7]} 8. Bd3 {[%clk 0:02:59.8]}
8... Qc7 {[%clk 0:02:28.2]} 9. Ndf3 {[%clk 0:02:59.7]} 9... Ne4 {[%clk
0:02:16.6]} 10. O-O {[%clk 0:02:58.7]} 10... f6 {[%clk 0:01:52.8]} 11. Nxc6
{[%clk 0:02:57.9]} 11... Bxf4 {[%clk 0:01:52.5]} 12. exf4 {[%clk 0:02:56.8]}
12... bxc6 {[%clk 0:01:50.6]} 13. Qc1 {[%clk 0:02:56.9]} 13... f5 {[%clk
0:00:23.5]} 14. Ne5 {[%clk 0:02:55.2]} 14... Bd7 {[%clk 0:00:22.7]} 15. f3
{[%clk 0:02:52.2]} 15... Nf6 {[%clk 0:00:21.1]} 16. dxc5 {[%clk 0:02:52.2]}
16... Be8 {[%clk 0:00:18.5]} 17. Qe3 {[%clk 0:02:51.6]} 17... Bf7 {[%clk
0:00:18.1]} 18. Rfe1 {[%clk 0:02:50.9]} 18... Rab8 {[%clk 0:00:18.4]} 19. b4
{[%clk 0:02:51]} 19... Rfe8 {[%clk 0:00:18.7]} 20. a3 {[%clk 0:02:51]} 20... Nd7
{[%clk 0:00:17.1]} 21. Nxd7 {[%clk 0:02:49.6]} 21... Qxd7 {[%clk 0:00:17]} 22.
Qd4 {[%clk 0:02:50.3]} 22... Qd8 {[%clk 0:00:15.3]} 23. Re2 {[%clk 0:02:50.3]}
23... Kf8 {[%clk 0:00:13]} 24. Rae1 {[%clk 0:02:49.2]} 24... Qh4 {[%clk
0:00:13.5]} 25. g3 {[%clk 0:02:49.1]} 25... Qe7 {[%clk 0:00:13.3]} 26. Bxf5
{[%clk 0:02:45.9]} 26... exf5 {[%clk 0:00:09.6]} 27. Rxe7 {[%clk 0:02:45.5]}
27... Rxe7 {[%clk 0:00:10.5]} 28. Rxe7 {[%clk 0:02:46.3]} 28... Kxe7 {[%clk
0:00:11.4]} 29. Qe5+ {[%clk 0:02:46.5]} 1-0

[Event "Early-Titled-Tuesday-Blitz-February-06-2024"]
[Site "Chess.com"]
[Date "2024.02.06"]
[Round "2"]
[White "Narek_Ghimoyan"]
[Black "boguszp"]
[Result "1-0"]
[WhiteElo "2426"]
[BlackElo "2066"]
[TimeControl "180+1"]
[EndTime "8:14:45 PST"]
[Termination "Narek_Ghimoyan won by checkmate"]

1. d4 {[%clk 0:03:00.9]} 1... d5 {[%clk 0:02:58.8]} 2. c4 {[%clk 0:03:01.5]}
2... c6 {[%clk 0:02:58.1]} 3. Nf3 {[%clk 0:03:02]} 3... Nf6 {[%clk 0:02:58]} 4.
Nc3 {[%clk 0:03:02.6]} 4... e6 {[%clk 0:02:56.8]} 5. e3 {[%clk 0:03:02.8]} 5...
Nbd7 {[%clk 0:02:56.4]} 6. Bd3 {[%clk 0:03:03.5]} 6... Bd6 {[%clk 0:02:56.6]} 7.
e4 {[%clk 0:03:03.5]} 7... dxe4 {[%clk 0:02:56.1]} 8. Nxe4 {[%clk 0:03:04.4]}
8... Nxe4 {[%clk 0:02:55.2]} 9. Bxe4 {[%clk 0:03:05.3]} 9... e5 {[%clk
0:02:53.7]} 10. O-O {[%clk 0:03:02.3]} 10... exd4 {[%clk 0:02:49.3]} 11. Qxd4
{[%clk 0:03:02]} 11... Bc5 {[%clk 0:02:42.5]} 12. Qxg7 {[%clk 0:03:01.1]} 12...
Qf6 {[%clk 0:02:35.5]} 13. Qxf6 {[%clk 0:02:56.6]} 13... Nxf6 {[%clk 0:02:35.8]}
14. Bd3 {[%clk 0:02:54.2]} 14... Bg4 {[%clk 0:02:33.9]} 15. Ne5 {[%clk
0:02:53.6]} 15... Be6 {[%clk 0:02:18.6]} 16. Bg5 {[%clk 0:02:51.7]} 16... Be7
{[%clk 0:02:01.1]} 17. Rfe1 {[%clk 0:02:47.2]} 17... O-O-O {[%clk 0:02:00.4]}
18. Rad1 {[%clk 0:02:45.9]} 18... Rhg8 {[%clk 0:01:57.5]} 19. Bh4 {[%clk
0:02:41.2]} 19... Rg7 {[%clk 0:01:32]} 20. Nxf7 {[%clk 0:02:35.5]} 20... Bxf7
{[%clk 0:01:01]} 21. Rxe7 {[%clk 0:02:33.2]} 21... Ng8 {[%clk 0:01:01.3]} 22.
Bf5+ {[%clk 0:02:31.4]} 22... Rd7 {[%clk 0:00:32.9]} 23. Rexd7 {[%clk
0:02:20.6]} 23... Nh6 {[%clk 0:00:24.7]} 24. Rxf7+ {[%clk 0:02:16.5]} 24... Nxf5
{[%clk 0:00:22.4]} 25. Rd8# {[%clk 0:02:17.4]} 1-0

[Event "Early-Titled-Tuesday-Blitz-February-06-2024"]
[Site "Chess.com"]
[Date "2024.02.06"]
[Round "2"]
[White "ChessSG1"]
[Black "jlmanzanares"]
[Result "1-0"]
[WhiteElo "2424"]
[BlackElo "2032"]
[TimeControl "180+1"]
[EndTime "8:14:53 PST"]
[Termination "ChessSG1 won by resignation"]

1. c4 {[%clk 0:03:00.9]} 1... Nf6 {[%clk 0:02:59.6]} 2. g3 {[%clk 0:03:01.3]}
2... g6 {[%clk 0:02:59.7]} 3. Bg2 {[%clk 0:03:01.7]} 3... Bg7 {[%clk 0:03:00.6]}
4. Nc3 {[%clk 0:03:02.2]} 4... O-O {[%clk 0:03:01.3]} 5. e4 {[%clk 0:03:02.7]}
5... d6 {[%clk 0:03:01.5]} 6. Nge2 {[%clk 0:03:03.4]} 6... Nc6 {[%clk
0:03:01.3]} 7. O-O {[%clk 0:03:02.8]} 7... e5 {[%clk 0:03:01.3]} 8. d3 {[%clk
0:03:03.4]} 8... a5 {[%clk 0:03:01.3]} 9. h3 {[%clk 0:03:02.3]} 9... Nd7 {[%clk
0:03:00]} 10. Be3 {[%clk 0:03:01.8]} 10... f5 {[%clk 0:02:59.9]} 11. exf5 {[%clk
0:02:54.1]} 11... gxf5 {[%clk 0:02:59.8]} 12. Nd5 {[%clk 0:02:51.5]} 12... Kh8
{[%clk 0:02:58]} 13. Qd2 {[%clk 0:02:43.1]} 13... Rg8 {[%clk 0:02:52.7]} 14. Bg5
{[%clk 0:02:30.4]} 14... Nf6 {[%clk 0:02:51.8]} 15. Rae1 {[%clk 0:02:20.7]}
15... Be6 {[%clk 0:02:49.5]} 16. Nec3 {[%clk 0:02:11.2]} 16... Nd4 {[%clk
0:02:44.8]} 17. f4 {[%clk 0:02:07.9]} 17... Bxd5 {[%clk 0:02:34.6]} 18. Nxd5
{[%clk 0:02:06.6]} 18... c6 {[%clk 0:02:34.8]} 19. fxe5 {[%clk 0:01:47.9]} 19...
cxd5 {[%clk 0:02:32.8]} 20. exf6 {[%clk 0:01:38.8]} 20... Bxf6 {[%clk
0:02:33.7]} 21. Bf4 {[%clk 0:01:31]} 21... Qd7 {[%clk 0:02:22.7]} 22. Bxd5
{[%clk 0:01:28.2]} 22... Rae8 {[%clk 0:02:17.1]} 23. Bxg8 {[%clk 0:01:24.8]}
23... Rxg8 {[%clk 0:02:16.8]} 24. Qg2 {[%clk 0:01:09.5]} 24... b5 {[%clk
0:02:03.6]} 25. Qd5 {[%clk 0:01:06.3]} 25... bxc4 {[%clk 0:02:00.1]} 26. dxc4
{[%clk 0:01:05.2]} 26... h5 {[%clk 0:01:50.6]} 27. Qxd6 {[%clk 0:01:01.9]} 27...
Qb7 {[%clk 0:01:48]} 28. Qxf6+ {[%clk 0:01:01.3]} 1-0

[Event "Early-Titled-Tuesday-Blitz-February-06-2024"]
[Site "Chess.com"]
[Date "2024.02.06"]
[Round "2"]
[White "topce"]
[Black "kibromNNN"]
[Result "1-0"]
[WhiteElo "2402"]
[BlackElo "1778"]
[TimeControl "180+1"]
[EndTime "8:14:54 PST"]
[Termination "topce won by resignation"]

1. c4 {[%clk 0:03:00.9]} 1... Nf6 {[%clk 0:02:56.3]} 2. Nc3 {[%clk 0:03:00.3]}
2... g6 {[%clk 0:02:54.7]} 3. e4 {[%clk 0:03:00.3]} 3... Bg7 {[%clk 0:02:54.9]}
4. d4 {[%clk 0:03:00.9]} 4... d6 {[%clk 0:02:53.1]} 5. f4 {[%clk 0:03:01.4]}
5... c5 {[%clk 0:02:51.6]} 6. d5 {[%clk 0:02:59.9]} 6... Qa5 {[%clk 0:02:49.6]}
7. Bd2 {[%clk 0:02:59]} 7... O-O {[%clk 0:02:45.4]} 8. Nf3 {[%clk 0:02:59.1]}
8... Bg4 {[%clk 0:02:44.1]} 9. Bd3 {[%clk 0:02:57.7]} 9... a6 {[%clk 0:02:41.7]}
10. h3 {[%clk 0:02:55.4]} 10... Bxf3 {[%clk 0:02:40]} 11. Qxf3 {[%clk
0:02:56.3]} 11... e6 {[%clk 0:02:38]} 12. dxe6 {[%clk 0:02:55.4]} 12... fxe6
{[%clk 0:02:37.4]} 13. O-O {[%clk 0:02:54.4]} 13... Qd8 {[%clk 0:02:36.6]} 14.
g4 {[%clk 0:02:46.5]} 14... Nc6 {[%clk 0:02:35.1]} 15. Rae1 {[%clk 0:02:44.3]}
15... Nd4 {[%clk 0:02:34.1]} 16. Qg2 {[%clk 0:02:44.2]} 16... Rb8 {[%clk
0:02:29.6]} 17. f5 {[%clk 0:02:40.4]} 17... exf5 {[%clk 0:02:25.8]} 18. exf5
{[%clk 0:02:36.2]} 18... gxf5 {[%clk 0:02:25.3]} 19. g5 {[%clk 0:02:26.8]} 19...
Nd7 {[%clk 0:02:20.7]} 20. Nd5 {[%clk 0:02:15.9]} 20... Ne5 {[%clk 0:02:19]} 21.
Bxf5 {[%clk 0:02:07.9]} 21... Nxf5 {[%clk 0:02:12.4]} 22. Nf6+ {[%clk
0:02:06.7]} 22... Rxf6 {[%clk 0:02:05.5]} 23. gxf6 {[%clk 0:02:02.8]} 23... Qxf6
{[%clk 0:02:04.3]} 24. Bg5 {[%clk 0:01:39.5]} 24... Qg6 {[%clk 0:02:00.9]} 25.
h4 {[%clk 0:01:39.8]} 25... Nd3 {[%clk 0:01:43.9]} 26. Qd5+ {[%clk 0:01:37.5]}
26... Kh8 {[%clk 0:01:38.2]} 27. Qxd3 {[%clk 0:01:37.2]} 27... Bd4+ {[%clk
0:01:36.9]} 28. Kh1 {[%clk 0:01:32.8]} 28... Be5 {[%clk 0:01:34.6]} 29. Qxf5
{[%clk 0:01:30.6]} 29... Qxf5 {[%clk 0:01:33.3]} 30. Rxf5 {[%clk 0:01:31.5]}
30... Kg7 {[%clk 0:01:32.4]} 31. h5 {[%clk 0:01:24.8]} 1-0

[Event "Early-Titled-Tuesday-Blitz-February-06-2024"]
[Site "Chess.com"]
[Date "2024.02.06"]
[Round "2"]
[White "smotherhubbard"]
[Black "ahkashefi2800"]
[Result "1-0"]
[WhiteElo "2370"]
[BlackElo "2538"]
[TimeControl "180+1"]
[EndTime "8:14:55 PST"]
[Termination "smotherhubbard won by checkmate"]

1. d4 {[%clk 0:03:00.9]} 1... c5 {[%clk 0:02:59.7]} 2. d5 {[%clk 0:02:59.9]}
2... e5 {[%clk 0:02:59.5]} 3. e4 {[%clk 0:02:57.2]} 3... d6 {[%clk 0:02:59.6]}
4. f4 {[%clk 0:02:57.1]} 4... Nd7 {[%clk 0:02:59.4]} 5. Nf3 {[%clk 0:02:56.8]}
5... g6 {[%clk 0:02:56.8]} 6. fxe5 {[%clk 0:02:55.7]} 6... Nxe5 {[%clk
0:02:56.4]} 7. Bb5+ {[%clk 0:02:46.1]} 7... Bd7 {[%clk 0:02:55.6]} 8. Bxd7+
{[%clk 0:02:43.7]} 8... Nxd7 {[%clk 0:02:54.7]} 9. O-O {[%clk 0:02:43.1]} 9...
Bg7 {[%clk 0:02:54.9]} 10. Bf4 {[%clk 0:02:38.6]} 10... Qb6 {[%clk 0:02:52.4]}
11. Nbd2 {[%clk 0:02:32.5]} 11... Ne7 {[%clk 0:02:48.7]} 12. Nc4 {[%clk
0:02:29.9]} 12... Qa6 {[%clk 0:02:45.6]} 13. Nxd6+ {[%clk 0:02:27.8]} 13... Kf8
{[%clk 0:02:44.4]} 14. Ng5 {[%clk 0:02:17.6]} 14... Bxb2 {[%clk 0:02:33.4]} 15.
Ngxf7 {[%clk 0:02:06.7]} 15... Kg7 {[%clk 0:02:28.6]} 16. Bh6+ {[%clk
0:01:57.9]} 16... Kg8 {[%clk 0:02:27.9]} 17. Rb1 {[%clk 0:01:52.7]} 17... Bd4+
{[%clk 0:02:27]} 18. Kh1 {[%clk 0:01:52]} 18... Ne5 {[%clk 0:02:27.1]} 19. Nxe5
{[%clk 0:01:17]} 19... Bxe5 {[%clk 0:02:26.4]} 20. Nf7 {[%clk 0:01:16.6]} 20...
Bd4 {[%clk 0:02:26.7]} 21. Qf3 {[%clk 0:01:14.7]} 21... Re8 {[%clk 0:02:04.8]}
22. d6 {[%clk 0:01:08.1]} 22... Nf5 {[%clk 0:01:45.1]} 23. exf5 {[%clk
0:01:01.5]} 23... Kxf7 {[%clk 0:01:44.2]} 24. Qd5+ {[%clk 0:00:54.9]} 24... Kf6
{[%clk 0:01:40.4]} 25. fxg6+ {[%clk 0:00:54.6]} 25... Kxg6 {[%clk 0:01:40.8]}
26. Qg5# {[%clk 0:00:54.5]} 1-0

[Event "Early-Titled-Tuesday-Blitz-February-06-2024"]
[Site "Chess.com"]
[Date "2024.02.06"]
[Round "2"]
[White "kai_nov"]
[Black "Der_Balak_3Halak"]
[Result "0-1"]
[WhiteElo "2299"]
[BlackElo "2504"]
[TimeControl "180+1"]
[EndTime "8:15:07 PST"]
[Termination "Der_Balak_3Halak won by resignation"]

1. e4 {[%clk 0:02:54.3]} 1... g6 {[%clk 0:02:59]} 2. d4 {[%clk 0:02:42.2]} 2...
Bg7 {[%clk 0:02:59.9]} 3. c4 {[%clk 0:02:33.2]} 3... c5 {[%clk 0:02:59.3]} 4.
Nf3 {[%clk 0:02:30.5]} 4... cxd4 {[%clk 0:02:58.9]} 5. Nxd4 {[%clk 0:02:26]}
5... Nc6 {[%clk 0:02:59.5]} 6. Nxc6 {[%clk 0:02:17.6]} 6... bxc6 {[%clk
0:03:00.4]} 7. Bd3 {[%clk 0:02:15.7]} 7... Rb8 {[%clk 0:02:55.7]} 8. Qc2 {[%clk
0:02:10.4]} 8... d6 {[%clk 0:02:52.1]} 9. O-O {[%clk 0:02:01.1]} 9... Nf6 {[%clk
0:02:52.1]} 10. Nc3 {[%clk 0:01:58]} 10... O-O {[%clk 0:02:50.9]} 11. Be3 {[%clk
0:01:44.8]} 11... c5 {[%clk 0:02:43]} 12. f4 {[%clk 0:01:38]} 12... Bb7 {[%clk
0:02:38.8]} 13. e5 {[%clk 0:01:36.3]} 13... Ng4 {[%clk 0:02:33.7]} 14. Qe2
{[%clk 0:01:31.2]} 14... Nxe3 {[%clk 0:02:31.5]} 15. Qxe3 {[%clk 0:01:29.1]}
15... dxe5 {[%clk 0:02:31.1]} 16. fxe5 {[%clk 0:01:28.7]} 16... Qd4 {[%clk
0:02:30.9]} 17. Qxd4 {[%clk 0:01:25.7]} 17... cxd4 {[%clk 0:02:31.8]} 18. Nb5
{[%clk 0:01:21.2]} 18... Bxe5 {[%clk 0:02:27.1]} 19. Rfe1 {[%clk 0:01:19.9]}
19... Bf6 {[%clk 0:02:17.1]} 20. Be4 {[%clk 0:01:14.2]} 20... a6 {[%clk
0:02:11]} 21. Na3 {[%clk 0:01:07.7]} 21... Bxe4 {[%clk 0:02:10.3]} 22. Rxe4
{[%clk 0:01:07.6]} 22... Rxb2 {[%clk 0:02:10.7]} 23. c5 {[%clk 0:01:07.3]} 23...
Rc8 {[%clk 0:02:03.2]} 24. Nc4 {[%clk 0:01:03.8]} 24... Rc2 {[%clk 0:02:02.4]}
25. Ne5 {[%clk 0:00:58.9]} 25... R8xc5 {[%clk 0:01:54.5]} 26. Nd7 {[%clk
0:00:57.2]} 26... Rc1+ {[%clk 0:01:54.5]} 27. Rxc1 {[%clk 0:00:54]} 27... Rxc1+
{[%clk 0:01:55.4]} 28. Kf2 {[%clk 0:00:54.1]} 28... d3 {[%clk 0:01:51.4]} 29.
Nxf6+ {[%clk 0:00:46.7]} 29... exf6 {[%clk 0:01:52.3]} 30. Rd4 {[%clk
0:00:45.6]} 30... Rc2+ {[%clk 0:01:51.8]} 31. Kg3 {[%clk 0:00:44]} 31... d2
{[%clk 0:01:51.3]} 0-1